bitfinex/quotes_BTCUSD_20220207
["timestamp","ask_amount","ask_price","bid_price","bid_amount"]
[1644276060601,0.10695681,43909.0,43901.0,0.0195]
[1644276060802,0.00072509,43911.0,43901.0,0.0195]
[1644276061449,0.15501153,43912.0,43901.0,0.0195]
[1644276061646,0.15501153,43912.0,43904.0,0.00049086]
[1644276061880,0.05694911,43910.0,43904.0,0.00049086]
[1644276062247,0.056952,43908.0,43904.0,0.00049086]
[1644276062454,0.1908856,43908.0,43904.0,0.00049086]
[1644276062656,0.1339336,43905.0,43902.0,0.00018971]
[1644276062853,0.1339336,43908.0,43904.0,0.00049086]
[1644276063547,0.113912,43909.0,43904.0,0.00049086]
[1644276063763,0.05694965,43907.0,43904.0,0.00049086]
[1644276063954,0.056949,43908.0,43902.0,0.00018971]
[1644276064162,0.02025305,43912.0,43904.0,0.00049086]
[1644276064348,0.02144586,43909.0,43904.0,0.00049086]
[1644276065200,0.02144586,43909.0,43904.0,0.00072556]
[1644276065995,0.15537946,43909.0,43904.0,0.00072556]
[1644276066196,0.17735133,43909.0,43902.0,0.00018971]
[1644276066395,0.02197187,43909.0,43904.0,0.00072556]
[1644276067194,0.07892287,43909.0,43904.0,0.00072556]
[1644276067404,0.07892287,43909.0,43902.0,0.00018971]
[1644276067405,0.1339336,43908.0,43902.0,0.00018971]
[1644276067594,0.1339336,43908.0,43901.0,0.0195]
[1644276067805,0.1339336,43908.0,43904.0,0.00072556]
[1644276068196,0.15475539,43908.0,43904.0,0.00072556]
[1644276068601,0.15475539,43908.0,43902.0,0.00018971]
[1644276068850,0.15475539,43908.0,43904.0,0.00072557]
[1644276069250,0.1339336,43905.0,43904.0,0.00072557]
[1644276069461,0.113914,43907.0,43904.0,0.00072557]
[1644276069650,0.36037271,43908.0,43904.0,0.00072557]
[1644276069651,0.056956,43906.0,43904.0,0.00072557]
[1644276069854,0.056956,43906.0,43902.0,0.00018971]
[1644276070052,0.056956,43906.0,43903.0,0.00072557]
[1644276071053,0.056956,43906.0,43902.0,0.00018971]
[1644276071252,0.056956,43906.0,43902.0,0.00072558]
[1644276071455,0.056956,43906.0,43902.0,0.00091529]
[1644276072254,0.07893286,43906.0,43902.0,0.00018971]
[1644276072501,0.1339336,43905.0,43902.0,0.00072559]
[1644276072694,0.1339336,43905.0,43902.0,0.0009153]
[1644276073506,0.1339336,43905.0,43902.0,0.00018971]
[1644276073693,0.1339336,43905.0,43901.0,0.0201854]
[1644276074701,0.1339336,43905.0,43901.0,0.0195]
[1644276074898,0.1339336,43905.0,43901.0,0.0201854]
[1644276075907,0.1339336,43905.0,43901.0,0.0195]
[1644276076098,0.1339336,43905.0,43901.0,0.0201854]
[1644276077149,0.1339336,43905.0,43901.0,0.0195]
[1644276077461,0.1340702,43906.0,43901.0,0.0201854]
[1644276077647,0.1339336,43902.0,43901.0,0.0201854]
[1644276077863,0.0771142,43906.0,43901.0,0.0201854]
[1644276078048,0.1339336,43902.0,43901.0,0.0201854]
[1644276078270,0.1339336,43902.0,43901.0,0.0195]
[1644276078749,0.056957,43903.0,43901.0,0.0195]
[1644276082907,0.1339336,43902.0,43901.0,0.0195]
[1644276083109,0.4583106,43902.0,43901.0,0.0195]
[1644276083608,0.324377,43902.0,43901.0,0.0195]
[1644276084050,0.056957,43903.0,43901.0,0.0195]
[1644276085761,0.02069208,43905.0,43901.0,0.0195]
[1644276085964,0.02069208,43905.0,43901.0,0.01968971]
[1644276086150,0.02063204,43905.0,43901.0,0.01968971]
[1644276086378,0.02063204,43905.0,43903.0,0.5]
[1644276086569,0.01890457,43906.0,43903.0,0.5]
[1644276086764,0.01890457,43906.0,43903.0,0.60018971]
[1644276086952,0.01890457,43906.0,43903.0,0.71405098]
[1644276087154,0.01890457,43906.0,43903.0,0.50018971]
[1644276087350,0.01890457,43906.0,43903.0,0.55712571]
[1644276087808,0.01890457,43906.0,43903.0,0.65712571]
[1644276088612,0.02164888,43910.0,43903.0,0.65712571]
[1644276088811,0.02164888,43910.0,43905.0,0.11387691]
[1644276089007,0.02164888,43910.0,43906.0,0.5]
[1644276089413,0.02164888,43910.0,43906.0,0.50018971]
[1644276089635,0.1339336,43907.0,43906.0,0.50018971]
[1644276089830,0.05695826,43906.0,43896.0,0.12161016]
[1644276090023,0.05695826,43906.0,43896.0,0.00291016]
[1644276090218,0.02164888,43910.0,43896.0,0.00291016]
[1644276090422,0.056947,43908.0,43895.0,0.0021]
[1644276091645,0.056947,43908.0,43902.0,0.00049016]
[1644276092073,0.02164888,43910.0,43903.0,0.056938]
[1644276092461,0.02166375,43908.0,43903.0,0.056938]
[1644276092846,0.02166375,43908.0,43905.0,0.056933]
[1644276093248,0.02130232,43908.0,43905.0,0.056933]
[1644276093949,0.02130232,43908.0,43906.0,0.056929]
[1644276094346,0.02130232,43908.0,43907.0,0.3037234]
[1644276094554,0.00022159,43909.0,43906.0,0.056929]
[1644276095195,0.02030979,43911.0,43906.0,0.056929]
[1644276095496,0.00022159,43910.0,43907.0,0.05693]
[1644276095695,0.00022159,43910.0,43904.0,0.213866]
[1644276095902,0.00022159,43910.0,43883.0,0.74909498]
[1644276096111,0.30022159,43910.0,43884.0,0.85365119]
[1644276096299,0.3,43910.0,43884.0,1.02445119]
[1644276096504,0.45,43913.0,43893.0,0.103892]
[1644276096725,0.00071101,43909.0,43897.0,0.11389]
[1644276097096,0.05765601,43909.0,43897.0,0.11389]
[1644276097598,0.056945,43909.0,43897.0,0.11389]
[1644276097801,0.05765604,43909.0,43901.0,0.00071117]
[1644276098398,0.07892374,43909.0,43901.0,0.00071117]
[1644276098879,0.0782127,43909.0,43897.0,0.10960117]
[1644276099054,0.07887379,43909.0,43903.0,0.00068789]
[1644276099254,0.32887379,43909.0,43903.0,0.00068789]
[1644276099458,0.2,43904.0,43903.0,0.00068789]
[1644276099657,0.881345,43904.0,43903.0,0.00068789]
[1644276099854,0.624377,43904.0,43903.0,0.00068789]
[1644276100057,0.056968,43906.0,43891.0,0.056955]
[1644276100265,0.7729,43908.0,43885.0,0.1359]
[1644276100459,0.31822784,43907.0,43889.0,0.1359]
[1644276100656,0.056948,43906.0,43888.0,0.170842]
[1644276100856,0.056948,43906.0,43891.0,0.113896]
[1644276101258,0.056948,43906.0,43891.0,0.170852]
[1644276101461,0.056948,43906.0,43896.0,0.00048961]
[1644276102356,0.25695516,43904.0,43896.0,0.00048961]
[1644276102609,0.056958,43902.0,43899.0,0.00072714]
[1644276103003,0.574377,43900.0,43899.0,0.00072714]
[1644276103300,0.25,43900.0,43899.0,0.00072714]
[1644276103499,0.03016725,43900.0,43899.0,0.00072714]
[1644276103710,0.19408444,43901.0,43895.0,0.01983275]
[1644276103897,0.19408444,43901.0,43897.0,0.00068686]
[1644276104114,0.1646,43904.0,43899.0,0.01983275]
[1644276104115,0.1146,43904.0,43899.0,0.01983275]
[1644276104499,0.02041604,43901.0,43898.0,0.056953]
[1644276104798,0.02041604,43901.0,43898.0,0.05714265]
[1644276105200,0.02041604,43901.0,43898.0,0.00018965]
[1644276105396,0.02041604,43901.0,43897.0,0.00068686]
[1644276105996,0.02041604,43901.0,43895.0,0.00018965]
[1644276106258,0.07737104,43901.0,43897.0,0.00063918]
[1644276106657,0.09591442,43901.0,43897.0,0.00082883]
[1644276107163,0.03895942,43901.0,43897.0,0.00082883]
[1644276107352,0.03895942,43901.0,43897.0,0.00018965]
[1644276107555,0.03895942,43901.0,43897.0,0.00044292]
[1644276107755,0.03895942,43901.0,43897.0,0.00063257]
[1644276108557,0.03895942,43901.0,43897.0,0.00018965]
[1644276108558,0.03016725,43900.0,43897.0,0.00018965]
[1644276108758,0.03016725,43900.0,43897.0,0.00064584]
[1644276109365,0.07522161,43901.0,43897.0,0.00064584]
[1644276109756,0.07522161,43901.0,43896.0,0.00018965]
[1644276110004,0.07522161,43901.0,43897.0,0.00066368]
[1644276110220,0.01826661,43901.0,43899.0,0.01983275]
[1644276110402,0.03662735,43901.0,43899.0,0.01983275]
[1644276110601,0.01836074,43901.0,43899.0,0.01983275]
[1644276110800,0.01836074,43901.0,43898.0,0.00018965]
[1644276111001,0.01836074,43901.0,43898.0,0.00066367]
[1644276111807,0.01836074,43901.0,43898.0,0.00085332]
[1644276112000,0.01836074,43901.0,43898.0,0.00018965]
[1644276112217,0.10548299,43901.0,43897.0,0.00066186]
[1644276112424,0.07531574,43901.0,43897.0,0.00066186]
[1644276112604,0.056955,43901.0,43897.0,0.00066186]
[1644276113206,0.056955,43901.0,43895.0,0.00018965]
[1644276113405,0.056955,43901.0,43897.0,0.00064587]
[1644276113607,0.23016725,43898.0,43897.0,0.00051987]
[1644276113869,0.85454425,43898.0,43897.0,0.00051987]
[1644276114077,0.65454425,43898.0,43897.0,0.00051987]
[1644276114469,0.00012576,43897.0,43890.0,0.00018965]
[1644276114677,0.05697069,43896.0,43889.0,0.00018965]
[1644276114864,0.03016725,43894.0,43882.0,0.12258965]
[1644276115066,0.03016725,43894.0,43882.0,0.00018965]
[1644276115283,0.056974,43894.0,43881.0,0.03983275]
[1644276115466,0.03016725,43889.0,43881.0,0.03983275]
[1644276115967,0.05697788,43887.0,43881.0,0.02]
[1644276116267,0.03016725,43894.0,43886.0,0.01983275]
[1644276116570,0.02123725,43890.0,43889.0,0.01983275]
[1644276118201,0.02123725,43890.0,43888.0,0.00018965]
[1644276118415,0.08713815,43889.0,43887.0,0.00069247]
[1644276118597,0.17123725,43890.0,43887.0,0.00069247]
[1644276118598,0.02123725,43890.0,43887.0,0.00069247]
[1644276118800,0.01937465,43893.0,43887.0,0.00069247]
[1644276118997,0.03016725,43892.0,43887.0,0.00069247]
[1644276119205,0.03016725,43892.0,43882.0,0.00018965]
[1644276119398,0.01937465,43893.0,43887.0,0.00069264]
[1644276120410,0.01937465,43893.0,43887.0,0.056966]
[1644276120718,0.01937465,43893.0,43885.0,0.00018965]
[1644276120719,0.03850988,43893.0,43892.0,0.01983275]
[1644276120900,0.03850988,43893.0,43889.0,0.01983275]
[1644276121348,0.03850988,43893.0,43889.0,0.0200224]
[1644276121550,0.03350988,43893.0,43890.0,0.056959]
[1644276121751,0.03350988,43893.0,43890.0,0.05714865]
[1644276122050,0.02350988,43893.0,43890.0,0.056959]
[1644276122450,0.02350988,43893.0,43890.0,0.05714865]
[1644276122649,0.33016725,43897.0,43890.0,0.05714865]
[1644276122650,0.01858855,43896.0,43892.0,0.01983275]
[1644276122853,0.01858855,43896.0,43895.0,0.01983275]
[1644276123655,0.01358855,43896.0,43895.0,0.01983275]
[1644276123952,0.11697561,43904.0,43898.0,0.056946]
[1644276124153,0.11697561,43904.0,43902.0,0.01983275]
[1644276124352,0.3783,43908.0,43896.0,0.40713865]
[1644276124655,0.00067808,43905.0,43896.0,0.406949]
[1644276124868,0.05,43901.0,43896.0,0.056953]
[1644276125111,0.07889954,43905.0,43896.0,0.056953]
[1644276125305,0.05,43904.0,43896.0,0.056953]
[1644276125705,0.05,43904.0,43896.0,0.05714265]
[1644276126704,0.05,43904.0,43896.0,0.056953]
[1644276126906,0.05,43904.0,43896.0,0.05714265]
[1644276127307,0.05,43905.0,43896.0,0.05714265]
[1644276127706,0.056948,43907.0,43896.0,0.05714265]
[1644276127905,0.056948,43907.0,43896.0,0.056953]
[1644276128105,0.056948,43907.0,43896.0,0.05714265]
[1644276128306,0.056948,43907.0,43900.0,0.056949]
[1644276128508,0.3783,43908.0,43900.0,0.056949]
[1644276129353,0.3783,43908.0,43901.0,0.056942]
[1644276129552,0.3783,43908.0,43903.0,0.056943]
[1644276129753,0.181944,43910.0,43903.0,0.056943]
[1644276129953,0.056944,43910.0,43903.0,0.056943]
[1644276130354,0.00072885,43909.0,43903.0,0.056943]
[1644276131355,0.056944,43910.0,43903.0,0.056943]
[1644276132602,0.051944,43910.0,43903.0,0.056943]
[1644276133604,0.051944,43910.0,43903.0,0.286943]
[1644276134403,0.05,43909.0,43903.0,0.23]
[1644276134605,0.056944,43908.0,43903.0,0.23]
[1644276135205,0.05767322,43908.0,43903.0,0.23]
[1644276135407,0.11461561,43908.0,43903.0,0.23]
[1644276135604,0.06709479,43908.0,43903.0,0.23]
[1644276135806,0.05,43905.0,43903.0,0.23]
[1644276136009,0.25,43905.0,43903.0,0.23]
[1644276136451,0.05,43905.0,43903.0,0.23]
[1644276137252,0.10694714,43905.0,43903.0,0.23]
[1644276137648,0.05694714,43905.0,43903.0,0.23]
[1644276137849,0.10767324,43906.0,43903.0,0.23]
[1644276138451,0.16388873,43906.0,43903.0,0.23]
[1644276141905,0.106944,43906.0,43903.0,0.23]
[1644276144552,0.056944,43906.0,43903.0,0.23]
[1644276147160,0.05,43905.0,43903.0,0.23]
[1644276148601,0.05767324,43906.0,43903.0,0.286942]
[1644276148602,0.00072924,43906.0,43903.0,0.286942]
[1644276149429,0.163883,43913.0,43903.0,0.286942]
[1644276149600,0.00072923,43907.0,43903.0,0.286942]
[1644276150499,0.056939,43910.0,43903.0,0.286942]
[1644276151004,0.00072922,43907.0,43903.0,0.286942]
[1644276151248,0.00072922,43907.0,43903.0,0.23]
[1644276151452,0.11461857,43907.0,43903.0,0.23]
[1644276151648,0.11388935,43907.0,43903.0,0.23]
[1644276152055,0.11461857,43907.0,43903.0,0.23]
[1644276152551,0.11390057,43906.0,43903.0,0.23]
[1644276152753,0.00072922,43907.0,43903.0,0.23]
[1644276152954,0.05,43913.0,43903.0,0.23]
[1644276153161,0.00072923,43907.0,43903.0,0.23]
[1644276153960,0.00072923,43907.0,43904.0,0.056939]
[1644276154254,0.1213,43914.0,43904.0,0.056939]
[1644276154454,0.00072922,43907.0,43904.0,0.056939]
[1644276155354,0.1213,43914.0,43904.0,0.113875]
[1644276155545,0.00072922,43908.0,43907.0,0.056935]
[1644276156643,0.1211878,43914.0,43908.0,0.056933]
[1644276156843,0.54330081,43919.0,43910.0,0.056933]
[1644276157043,0.07513122,43917.0,43910.0,0.056933]
[1644276157361,0.15,43913.0,43903.0,0.23]
[1644276157544,0.05,43913.0,43903.0,0.23]
[1644276158145,0.00072919,43910.0,43903.0,0.23]
[1644276158345,0.00072919,43910.0,43905.0,0.113877]
[1644276158964,0.01819722,43917.0,43905.0,0.113877]
[1644276159361,0.0007292,43910.0,43905.0,0.113877]
[1644276159557,0.0007292,43910.0,43908.0,0.056937]
[1644276160155,0.05,43915.0,43908.0,0.056937]
[1644276160467,0.00072918,43911.0,43910.0,0.113872]
[1644276161469,0.39211107,43919.0,43912.0,0.05692641]
[1644276161758,0.00072916,43913.0,43912.0,0.17078141]
[1644276161958,0.00072916,43913.0,43912.0,0.22770841]
[1644276162160,0.01931107,43919.0,43913.0,0.613839]
[1644276162358,0.01931107,43919.0,43913.0,0.82766986]
[1644276162606,0.3,43928.0,43914.0,0.05]
[1644276162802,0.3,43928.0,43918.0,0.056914]
[1644276163011,0.0189916,43922.0,43921.0,0.056913]
[1644276165012,0.0189916,43922.0,43919.0,0.056921]
[1644276166356,0.0189916,43922.0,43919.0,0.286921]
[1644276166961,0.00072905,43923.0,43919.0,0.286921]
[1644276167352,0.056916,43926.0,43919.0,0.286921]
[1644276167553,0.106916,43926.0,43919.0,0.286921]
[1644276167851,0.00072905,43923.0,43919.0,0.286921]
[1644276168352,0.00072905,43923.0,43919.0,0.343837]
[1644276168552,0.05,43926.0,43919.0,0.286921]
[1644276168752,0.11384,43927.0,43919.0,0.4080345]
[1644276168959,0.00072905,43923.0,43919.0,0.4080345]
[1644276169855,0.056919,43927.0,43919.0,0.4080345]
[1644276170118,0.00072905,43923.0,43919.0,0.4080345]
[1644276170705,0.00072905,43923.0,43919.0,0.42828094]
[1644276170905,0.00072905,43923.0,43919.0,0.40716744]
[1644276171106,0.056919,43927.0,43919.0,0.40716744]
[1644276171321,0.056919,43927.0,43919.0,0.40716344]
[1644276171612,0.056919,43927.0,43921.0,0.05692]
[1644276172407,0.056921,43925.0,43921.0,0.05692]
[1644276173108,0.15,43928.0,43921.0,0.05692]
[1644276173751,0.05,43926.0,43921.0,0.05692]
[1644276174756,0.05072937,43926.0,43921.0,0.05692]
[1644276174959,0.10765208,43926.0,43921.0,0.05692]
[1644276175754,0.10692271,43926.0,43921.0,0.05692]
[1644276175955,0.056921,43925.0,43921.0,0.05692]
[1644276177158,0.00072938,43925.0,43921.0,0.05692]
[1644276178203,0.05,43926.0,43921.0,0.05692]
[1644276178405,0.00072938,43925.0,43923.0,0.056916]
[1644276178603,0.00072938,43925.0,43924.0,0.056916]
[1644276179410,0.05,43926.0,43924.0,0.056916]
[1644276180209,0.00072936,43927.0,43924.0,0.056916]
[1644276180608,0.106916,43930.0,43924.0,0.056916]
[1644276180823,0.00072935,43928.0,43924.0,0.056916]
[1644276181966,0.3921,43935.0,43926.0,0.056905]
[1644276182168,0.3921,43935.0,43928.0,0.056905]
[1644276182556,0.124,43937.0,43928.0,0.056905]
[1644276183355,0.124,43937.0,43931.0,0.056906]
[1644276183559,1.10059789,43939.0,43931.0,0.056906]
[1644276183754,0.51769789,43939.0,43931.0,0.056906]
[1644276183953,0.00029289,43938.0,43931.0,0.056906]
[1644276184153,0.51769789,43939.0,43931.0,0.056906]
[1644276184357,0.517405,43939.0,43931.0,0.056906]
[1644276184753,0.517405,43939.0,43931.0,0.07694487]
[1644276185010,0.46079289,43939.0,43933.0,0.056903]
[1644276185199,0.07,43939.0,43933.0,0.056903]
[1644276185697,0.0007323,43938.0,43933.0,0.056903]
[1644276185901,0.00102519,43938.0,43933.0,0.056903]
[1644276186302,0.05,43934.0,43933.0,0.056903]
[1644276186501,0.324377,43932.0,43926.0,0.113821]
[1644276186702,0.35,43933.0,43914.0,0.1203]
[1644276186703,0.15,43925.0,43914.0,0.1203]
[1644276186918,0.05,43923.0,43906.0,0.170764]
[1644276187114,0.05,43923.0,43908.0,0.5]
[1644276187300,0.1144,43924.0,43909.0,0.26283601]
[1644276187502,0.3,43929.0,43912.0,0.113851]
[1644276187701,0.35,43929.0,43912.0,0.113851]
[1644276188100,0.00024053,43923.0,43912.0,0.213851]
[1644276188300,0.05716053,43923.0,43912.0,0.113851]
[1644276188603,0.11408337,43923.0,43912.0,0.113851]
[1644276188853,0.11408337,43923.0,43912.0,0.343851]
[1644276188854,0.10716053,43923.0,43912.0,0.343851]
[1644276189061,0.05692,43923.0,43912.0,0.400775]
[1644276189354,0.00073219,43920.0,43912.0,0.500775]
[1644276190352,0.05692,43923.0,43922.0,0.00103585]
[1644276190565,0.10692,43923.0,43922.0,0.00103585]
[1644276190760,0.37956087,43923.0,43915.0,0.056925]
[1644276190957,0.32956087,43923.0,43915.0,0.170774]
[1644276191161,0.05692,43923.0,43915.0,0.170774]
[1644276191358,0.05,43921.0,43915.0,0.170774]
[1644276191557,0.05,43921.0,43912.0,0.33]
[1644276191558,0.2,43916.0,43912.0,0.23]
[1644276191758,0.05,43913.0,43912.0,0.23]
[1644276191961,0.05,43913.0,43904.0,0.00073245]
[1644276191962,0.4,43912.0,43904.0,0.00073245]
[1644276192162,0.05,43908.0,43904.0,0.00073245]
[1644276192361,0.1134,43911.0,43904.0,0.00073245]
[1644276192609,0.05,43905.0,43904.0,0.00073245]
[1644276192911,0.05,43905.0,43890.0,0.113896]
[1644276192912,0.2,43901.0,43890.0,0.113896]
[1644276193120,0.2634,43911.0,43890.0,0.113896]
[1644276193121,0.05,43900.0,43890.0,0.113896]
[1644276193308,0.15,43898.0,43890.0,0.113896]
[1644276193506,0.05,43897.0,43889.0,0.00018613]
[1644276193706,0.05,43897.0,43888.0,0.00128613]
[1644276194109,0.05,43897.0,43891.0,0.00070811]
[1644276194515,0.16391142,43897.0,43891.0,0.00070811]
[1644276195105,0.16391142,43897.0,43889.0,0.00018613]
[1644276195311,0.16391142,43897.0,43892.0,0.0007081]
[1644276195507,0.11391142,43897.0,43892.0,0.0007081]
[1644276195908,0.05,43893.0,43892.0,0.0007081]
[1644276196350,0.05,43893.0,43889.0,0.00018613]
[1644276196548,0.05,43893.0,43890.0,0.00070811]
[1644276197557,0.05,43893.0,43889.0,0.00018613]
[1644276197750,0.05,43893.0,43889.0,0.00070615]
[1644276197951,0.32509487,43893.0,43889.0,0.00089228]
[1644276198752,0.34341019,43893.0,43889.0,0.00018613]
[1644276198953,0.34341019,43893.0,43888.0,0.00128613]
[1644276199152,0.05,43892.0,43888.0,0.00128613]
[1644276200395,0.05160561,43892.0,43888.0,0.00128613]
[1644276200802,0.25,43889.0,43883.0,0.115011]
[1644276201004,0.1,43889.0,43888.0,0.18]
[1644276201200,0.15,43889.0,43888.0,0.18]
[1644276201399,0.25,43889.0,43888.0,0.18]
[1644276201802,0.05,43889.0,43888.0,0.18]
[1644276201997,0.07277253,43892.0,43888.0,0.18]
[1644276201998,0.056965,43891.0,43888.0,0.18]
[1644276203002,0.55160561,43892.0,43888.0,0.18]
[1644276203216,0.50160561,43892.0,43890.0,0.05]
[1644276203851,0.00160561,43892.0,43890.0,0.05]
[1644276205457,0.00160561,43892.0,43889.0,0.11462174]
[1644276205653,0.00160561,43892.0,43891.0,0.056946]
[1644276205853,0.0205531,43896.0,43891.0,0.056946]
[1644276206854,0.0205531,43896.0,43895.0,0.05]
[1644276207055,0.00160049,43896.0,43895.0,0.05]
[1644276207703,0.00160049,43896.0,43893.0,0.11389]
[1644276207906,0.00160049,43896.0,43892.0,0.056948]
[1644276208107,0.01946648,43899.0,43892.0,0.35]
[1644276208316,0.01946648,43899.0,43892.0,0.113889]
[1644276208505,0.01946648,43899.0,43892.0,0.11461671]
[1644276209107,0.07586023,43903.0,43893.0,0.05]
[1644276209308,0.07586023,43903.0,43892.0,0.11461671]
[1644276209505,0.07586023,43903.0,43890.0,0.113898]
[1644276209707,0.2,43898.0,43896.0,0.00072766]
[1644276210507,0.27777547,43897.0,43896.0,0.00072766]
[1644276210711,0.27777547,43897.0,43888.0,0.236956]
[1644276210907,0.2,43898.0,43895.0,0.00072768]
[1644276211362,0.01947387,43900.0,43895.0,0.00072768]
[1644276211754,0.01947387,43900.0,43896.0,0.056945]
[1644276212655,0.01947387,43900.0,43898.0,0.05]
[1644276213155,0.01839412,43903.0,43899.0,0.056938]
[1644276213956,0.01839412,43903.0,43901.0,0.05]
[1644276214565,0.01772248,43903.0,43901.0,0.05]
[1644276214756,0.01772248,43903.0,43900.0,0.00047451]
[1644276215006,0.01772248,43903.0,43902.0,0.05]
[1644276215201,0.01972919,43906.0,43902.0,0.106941]
[1644276215905,0.01972919,43906.0,43902.0,0.056941]
[1644276216502,0.01972919,43906.0,43899.0,0.056944]
[1644276216900,0.01972919,43906.0,43902.0,0.00069059]
[1644276217103,0.02191152,43909.0,43902.0,0.00069059]
[1644276217903,0.02191152,43909.0,43899.0,0.056944]
[1644276218102,0.02191152,43909.0,43903.0,0.00069058]
[1644276218953,0.04297355,43909.0,43903.0,0.00069058]
[1644276219161,0.02106203,43909.0,43902.0,0.05]
[1644276219452,0.07106203,43909.0,43904.0,0.00069057]
[1644276220254,0.07106203,43909.0,43902.0,0.05]
[1644276220455,0.12800503,43909.0,43904.0,0.00069029]
[1644276220655,0.27800503,43909.0,43904.0,0.00069029]
[1644276220956,0.29652909,43909.0,43904.0,0.00069029]
[1644276221158,0.27546706,43909.0,43904.0,0.00069029]
[1644276221372,0.22546706,43909.0,43904.0,0.00069029]
[1644276221556,0.22546706,43909.0,43902.0,0.05]
[1644276221757,0.22546706,43909.0,43905.0,0.05]
[1644276221758,0.16852406,43909.0,43905.0,0.05]
[1644276221966,0.01852406,43909.0,43905.0,0.05]
[1644276222364,0.01852406,43909.0,43904.0,0.00069029]
[1644276222608,0.01852406,43909.0,43900.0,0.05]
[1644276223009,0.01852406,43909.0,43904.0,0.00069029]
[1644276223208,0.01983271,43912.0,43904.0,0.00069029]
[1644276223417,0.01983271,43912.0,43905.0,0.056934]
[1644276223606,0.01829194,43912.0,43905.0,0.056934]
[1644276224007,0.01829194,43912.0,43900.0,0.23]
[1644276224008,0.2,43908.0,43900.0,0.23]
[1644276224207,0.2,43908.0,43904.0,0.00068237]
[1644276224609,0.01829194,43912.0,43906.0,0.05]
[1644276225006,0.01818249,43908.0,43906.0,0.05]
[1644276226375,0.01818249,43908.0,43907.0,0.113866]
[1644276226958,0.01818249,43908.0,43907.0,0.163866]
[1644276227159,0.02142634,43911.0,43907.0,0.163866]
[1644276227364,0.02142634,43911.0,43910.0,0.05]
[1644276227559,0.02142634,43911.0,43910.0,0.106925]
[1644276228159,0.02142634,43911.0,43910.0,0.056925]
[1644276228362,0.02142634,43911.0,43910.0,0.106925]
[1644276229159,0.01898157,43915.0,43910.0,0.106925]
[1644276229360,0.01898157,43915.0,43914.0,0.056929]
[1644276229560,0.01898157,43915.0,43913.0,0.05]
[1644276230012,0.01829882,43915.0,43913.0,0.05]
[1644276230211,0.01829882,43915.0,43910.0,0.163857]
[1644276230504,0.01829882,43915.0,43913.0,0.05]
[1644276230704,0.01829882,43915.0,43910.0,0.113857]
[1644276231104,0.00029289,43918.0,43910.0,0.113857]
[1644276231318,0.06861696,43919.0,43910.0,0.113857]
[1644276231610,0.00068273,43915.0,43910.0,0.113857]
[1644276231805,0.00068273,43915.0,43913.0,0.05]
[1644276232006,0.00068273,43915.0,43913.0,0.106931]
[1644276232405,0.00029289,43918.0,43913.0,0.106931]
[1644276232604,0.06832407,43919.0,43913.0,0.106931]
[1644276232605,0.00068272,43916.0,43913.0,0.106931]
[1644276233605,0.00029289,43918.0,43913.0,0.106931]
[1644276233863,0.05029289,43919.0,43913.0,0.106931]
[1644276234064,0.00029289,43918.0,43913.0,0.106931]
[1644276234272,0.15,43916.0,43913.0,0.336931]
[1644276235866,0.00029289,43918.0,43913.0,0.336931]
[1644276236073,0.22173312,43919.0,43913.0,0.336931]
[1644276236266,0.00024358,43917.0,43913.0,0.336931]
[1644276237068,0.00029289,43918.0,43913.0,0.336931]
[1644276237268,0.2,43919.0,43913.0,0.336931]
[1644276237512,0.00024358,43917.0,43913.0,0.336931]
[1644276237908,0.00024358,43917.0,43913.0,0.286931]
[1644276238308,0.00029289,43918.0,43913.0,0.286931]
[1644276238511,0.00073078,43917.0,43913.0,0.286931]
[1644276238711,0.2,43916.0,43913.0,0.286931]
[1644276239115,0.00073078,43917.0,43913.0,0.286931]
[1644276239308,0.2,43916.0,43913.0,0.286931]
[1644276240110,0.15,43916.0,43913.0,0.286931]
[1644276240311,0.2,43916.0,43913.0,0.286931]
[1644276240809,0.05,43916.0,43913.0,0.286931]
[1644276241010,0.2,43916.0,43913.0,0.286931]
[1644276241263,0.15,43916.0,43913.0,0.23]
[1644276241463,0.05,43914.0,43913.0,0.23]
[1644276242262,0.25761896,43916.0,43913.0,0.28]
[1644276242465,0.20068196,43916.0,43913.0,0.28]
[1644276243072,0.2,43916.0,43913.0,0.28]
[1644276243469,0.2,43916.0,43913.0,0.336931]
[1644276244060,0.2,43916.0,43914.0,0.056925]
[1644276246912,0.2,43916.0,43914.0,0.106925]
[1644276249961,0.15,43916.0,43914.0,0.106925]
[1644276250157,0.00068484,43917.0,43915.0,0.163846]
[1644276250359,0.01933054,43919.0,43916.0,0.29790359]
[1644276250559,0.01933054,43919.0,43918.0,0.05]
[1644276250859,0.01933054,43919.0,43918.0,0.34616883]
[1644276251857,0.00029289,43922.0,43918.0,0.40308283]
[1644276252062,0.15,43921.0,43918.0,0.113832]
[1644276252267,0.15,43921.0,43918.0,0.05]
[1644276252723,0.15,43921.0,43913.0,0.23]
[1644276252914,0.15029289,43921.0,43913.0,0.23]
[1644276253115,0.15029289,43921.0,43914.0,0.056924]
[1644276253318,0.15029289,43921.0,43914.0,0.170774]
[1644276253615,0.15029289,43921.0,43916.0,0.106924]
[1644276254014,0.15029289,43921.0,43917.0,0.05]
[1644276254223,0.15097863,43921.0,43916.0,0.056924]
[1644276254816,0.15097863,43921.0,43917.0,0.05]
[1644276255217,0.15097863,43921.0,43918.0,0.056924]
[1644276255218,0.15029289,43921.0,43918.0,0.056924]
[1644276255419,0.15068574,43921.0,43918.0,0.056924]
[1644276255619,0.17037555,43921.0,43918.0,0.056924]
[1644276255820,0.02037555,43921.0,43920.0,0.05]
[1644276256465,0.01968981,43921.0,43920.0,0.05]
[1644276257264,0.00068568,43923.0,43920.0,0.05]
[1644276257481,0.00068568,43923.0,43921.0,0.056913]
[1644276257671,0.00029289,43924.0,43922.0,0.056912]
[1644276257868,0.00068567,43924.0,43923.0,0.05]
[1644276258772,0.02113303,43925.0,43924.0,0.056904]
[1644276260012,0.00029289,43927.0,43924.0,0.113806]
[1644276260211,0.12449289,43936.0,43927.0,0.056902]
[1644276260406,0.00029289,43935.0,43930.0,0.056902]